Cogmind - Beta 9.3 @@@ ROGUE MODE // 2019.12.25 @ 19:00:32 Player: Demise Result: Destroyed by D-53 Grenadier with Mini Grenade Launcher Performance ------------- Evolutions (0) 0 Regions Visited (2) 400 Robots Destroyed (18) 90 Value Destroyed (254) 254 Prototype IDs (2) 40 Alien Tech Used (0) 0 Bonus (0) 0 TOTAL SCORE: 784 Bonus ------- None Cogmind --------- Core Integrity 0/250 Matter 219/300 Energy 85/100 System Corruption 0% Temperature Cool (0) Movement Walking (150) Ox1 Location -10/Mines Parts ------- > --- POWER (1) -------- (None) > --- PROPULSION (2) --- Aluminum Leg > --- UTILITY (2) ------ Large Storage Unit > --- WEAPON (2) ------- (None) > --- INVENTORY (10) --- Light Ion Engine Light Ion Engine Large Storage Unit Large Matter Pod (120) Improved Terrain Scanner Terrain Scan Processor Light EM Pulse Cannon Light EM Pulse Cannon Welding Torch Peak State ------------ > --- POWER ------------ Light Ion Engine > --- PROPULSION ------- Wheel Wheel > --- UTILITY ---------- Small Storage Unit Improved Terrain Scanner > --- WEAPON ----------- Light EM Pulse Cannon Light EM Pulse Cannon > --- INVENTORY -------- Aluminum Leg Medium Matter Pod Terrain Scan Processor Light Armor Plating Grenade Launcher Mining Laser [Rating: 10] Favorites ----------- Power Light Ion Engine Engine Light Ion Engine Propulsion Wheel Treads Light Treads Leg Aluminum Leg Wheel Wheel Utility Light Armor Plating Device Improved Terrain Scanner Storage Small Storage Unit Protection Light Armor Plating Weapon Light EM Pulse Cannon Energy Gun Medium Laser Energy Cannon Light EM Pulse Cannon Ballistic Gun Assault Rifle Ballistic Cannon Light Cannon Launcher Grenade Launcher Build | -11 -10 -10 ------- Run | Scr Mat Min Slots Evolved . | . . . Power . | . . . Propulsion . | . . . Utility . | . . . Weapon . | . . . Parts Attached 18 | 6 10 2 Power 3 | 1 2 . Engine 3 | 1 2 . Core . | . . . Reactor . | . . . Propulsion 5 | 2 2 1 Treads 1 | . 1 . Leg 2 | . 1 1 Wheel 2 | 2 . . Hover . | . . . Flight . | . . . Utility 4 | 1 3 . Device 1 | . 1 . Storage 2 | 1 1 . Processor . | . . . Hackware . | . . . Protection 1 | . 1 . Artifact . | . . . Weapon 6 | 2 3 1 Energy Gun 1 | 1 . . Energy Cannon 2 | . 2 . Ballistic Gun 1 | 1 . . Ballistic Cannon 1 | . 1 . Launcher 1 | . . 1 Special Weapon . | . . . Impact Weapon . | . . . Slashing Weapon . | . . . Piercing Weapon . | . . . Special Melee Weapon . | . . . Unidentified Prototypes . | . . . Parts Lost 8 | . 2 6 Power 1 | . . 1 Propulsion 4 | . 2 2 Utility 1 | . . 1 Weapon 2 | . . 2 Highest Loss Streak 6 | . 1 6 Average Slot Usage (%) 96 | . 96 96 Engine 13 | . 14 12 Treads 3 | . 1 14 Leg 5 | . 6 . Wheel 16 | . 17 14 Device 1 | . 1 . Storage 14 | . 14 14 Protection 12 | . 12 12 Energy Gun 1 | . 1 . Energy Cannon 17 | . 18 12 Ballistic Gun 1 | . 1 . Ballistic Cannon 7 | . 5 14 Naked Turns . | . . . Heaviest Build 30 | 11 30 29 Greatest Support 20 | 20 20 10 Greatest Overweight (x) 2 | . 2 2 Average Overweight (x) 1 | . 1 2 Largest Inventory Capacity 10 | 6 10 10 Average Capacity 7 | 5 8 10 Most Carried 10 | 6 10 10 Average Carried 7 | 4 7 9 Final Capacity 10 | 6 10 10 Final Carried 10 | 6 10 9 Class Distribution -------------------- 100% | Mutant Dominant Class ---------------- Mutant | -10/Materials Mutant | -10/Mines Resources | -11 -10 -10 ----------- Run | Scr Mat Min Matter Collected 588 | 387 201 . Remotely . | . . . Salvage Created 513 | 218 295 . Parts 50 | 25 25 . Haulers Intercepted 1 | . 1 . Recyclers Shooed . | . . . Parts Field Recycled . | . . . Retrieved Matter . | . . . Parts Self-Destructed . | . . . Prevented . | . . . Kills | -11 -10 -10 ------- Run | Scr Mat Min Combat Hostiles Destroyed 7 | . 7 . Cannons 5 | . 5 . AOE 2 | . 2 . Classes Destroyed 7 | 3 4 . Worker 2 | 2 . . Builder 2 | . 2 . Tunneler 5 | 5 . . Hauler 1 | . 1 . Recycler 1 | 1 . . Swarmer 3 | . 3 . Grunt 4 | . 4 . Best Kill Streak 6 | 6 4 . Combat Bots Only 3 | . 3 . Max Kills in Single Turn 1 | 1 1 . Gunslinging . | . . . Exploded 1 | . 1 . Melee . | . . . Uniques/NPCs Destroyed . | . . . Combat | -11 -10 -10 -------- Run | Scr Mat Min Damage Taken 1109 | . 493 616 Core 252 | . 132 120 Absorbed by Shields . | . . . Core Remaining (%) 100 | 100 . . Volleys Fired 34 | 11 18 5 Largest 2 | 2 2 2 Hottest 112 | 70 112 91 Shots Fired 67 | 22 36 9 Gun 22 | 22 . . Cannon 42 | . 36 6 Launcher 3 | . . 3 Special . | . . . Kinetic 24 | 11 8 5 Thermal 11 | 11 . . Explosive 3 | . . 3 Electromagnetic 29 | . 28 1 Robot Hit Streak 7 | 7 5 3 Robot Miss Streak 6 | 1 6 1 Penetration Max . | . . . Secondary Targets . | . . . Shots Hit Robots 38 | 17 16 5 Core Hits 24 | 9 11 4 Critical Hits 1 | 1 . . Critical Kills 1 | 1 . . Critical Parts Destroyed . | . . . Melee Attacks . | . . . Impact . | . . . Slashing . | . . . Piercing . | . . . Sneak Attacks . | . . . Combat Hostiles . | . . . Follow-up Attacks . | . . . Damage Inflicted 854 | 212 539 103 Guns 212 | 212 . . Cannons 438 | . 378 60 Explosions 204 | . 161 43 Melee . | . . . Ramming . | . . . Kinetic 162 | 86 16 60 Thermal 287 | 126 161 . Explosive 43 | . . 43 Electromagnetic 362 | . 362 . Impact . | . . . Slashing . | . . . Piercing . | . . . Highest Corruption . | . . . Average Corruption . | . . . Corruption Purged . | . . . Overload Shots . | . . . Overflow Damage 27 | . 27 . Projectiles 12 | . 12 . Explosions 15 | . 15 . Melee . | . . . Knockbacks 2 | . . 2 Impact . | . . . Kinetic 2 | . . 2 Secondary . | . . . Self-Inflicted Damage 88 | . 78 10 Shots 3 | . 2 1 Rammed . | . . . Targets Rammed . | . . . Kicked . | . . . Crushed . | . . . Highest Temperature 273 | 54 273 51 Average Temperature 63 | 20 81 18 Received Heat Transfer 177 | . 177 . Siege Activations . | . . . Robots Corrupted . | . . . Combat Hostiles . | . . . Parts Fried 1 | . 1 . Impact Corruptions . | . . . Robots Melted . | . . . Combat Hostiles . | . . . Parts Melted . | . . . Heat Transferred 620 | 370 250 . Parts Sabotaged . | . . . Parts Stolen . | . . . Parts Stripped . | . . . Power Chain Reactions 3 | . 3 . Missiles Intercepted . | . . . Alert | -11 -10 -10 ------- Run | Scr Mat Min Peak Influence 234 | 40 234 39 Average Influence 95 | 20 124 27 Maximum Alert Level 1 | . 1 . Low Security (%) 92 | 100 89 100 Level 1 7 | . 10 . Level 2 . | . . . Level 3 . | . . . Level 4 . | . . . Level 5 . | . . . High Security . | . . . Max Security . | . . . Squads Dispatched 1 | . 1 . Investigation . | . . . Extermination . | . . . Reinforcement 1 | . 1 . Assault . | . . . Garrison . | . . . Intercept . | . . . Construction Impeded . | . . . Haulers Reinforced . | . . . Stealth | -11 -10 -10 --------- Run | Scr Mat Min Distress Signals 2 | . 2 . Communications Jammed . | . . . Distress Signals . | . . . Times Spotted 17 | . 15 2 Peak Tracking Total 4 | . 4 2 Tactical Retreats 5 | . 5 . Traps | -11 -10 -10 ------- Run | Scr Mat Min Traps Triggered 1 | . 1 . Indirectly . | . . . Trap Hack Attempts . | . . . Triggered . | . . . Disarmed . | . . . Reprogrammed . | . . . Reused . | . . . Traps Extracted . | . . . Installed . | . . . Triggered 1 | . 1 . Machines | -11 -10 -10 ---------- Run | Scr Mat Min Machines Disabled 2 | . 1 1 Max in Single Turn 1 | . 1 1 Machines Sabotaged . | . . . Garrisons Compromised . | . . . Overloaded Fab Kills . | . . . Fab Network Shutdowns . | . . . Hacking | -11 -10 -10 --------- Run | Scr Mat Min Machines Accessed 3 | . 3 . Terminals 3 | . 3 . Fabricators . | . . . Repair Stations . | . . . Recycling Units . | . . . Scanalyzers . | . . . Garrison Access . | . . . Total Hacks 10 | . 10 . Successful 9 | . 9 . Failed 1 | . 1 . Catastrophic . | . . . Database Lockouts . | . . . Manual 6 | . 6 . Terminals 10 | . 10 . Fabricators . | . . . Repair Stations . | . . . Recycling Units . | . . . Scanalyzers . | . . . Garrison Access . | . . . Terminal Hacks 6 | . 6 . Prototype ID Bank 1 | . 1 . Branch Access Points 1 | . 1 . Hauler Manifests 3 | . 3 . Registered Components 1 | . 1 . Fabricator Hacks . | . . . Repair Station Hacks . | . . . Recycling Unit Hacks . | . . . Scanalyzer . | . . . Garrison Access Hacks . | . . . Unauthorized Hacks 6 | . 6 . Terminals 3 | . 3 . Botnet 3 | . 3 . Fabricators . | . . . Repair Stations . | . . . Recycling Units . | . . . Scanalyzers . | . . . Garrison Access . | . . . Data Cores Recovered . | . . . Used . | . . . Hacking Detections 2 | . 2 . Full Trace Events . | . . . Feedback Events . | . . . Feedback Blocked . | . . . Robot Schematics Acquired . | . . . Robots Built . | . . . Matter . | . . . Time . | . . . Total Robot Build Rating . | . . . Part Schematics Acquired . | . . . Parts Built . | . . . Matter . | . . . Time . | . . . Total Part Build Rating . | . . . Parts Repaired . | . . . Time . | . . . Parts Recycled . | . . . Recycled Matter . | . . . Retrieved Matter . | . . . Retrieved Components . | . . . Parts Scanalyzed . | . . . Part Schematics Acquired . | . . . Parts Damaged . | . . . Bothacking | -11 -10 -10 ------------ Run | Scr Mat Min Used RIF Installer . | . . . Robots Hacked . | . . . Non-combat . | . . . Combat . | . . . Robot Hacks Applied . | . . . Relay Couplers Released . | . . . Robots Rewired . | . . . Allies Hacked . | . . . Hacks Repelled . | . . . Allies | -11 -10 -10 -------- Run | Scr Mat Min Total Allies . | . . . Largest Group . | . . . Highest-Rated Group . | . . . Highest-Rated Ally . | . . . Total Orders . | . . . Ally Attacks . | . . . Total Damage . | . . . Kills . | . . . Allies Corrupted . | . . . Allies Melted . | . . . Intel | -11 -10 -10 ------- Run | Scr Mat Min Robot Analysis Total . | . . . Derelict Logs Recovered . | . . . Drone Launches . | . . . Drone Recoveries . | . . . Exploration | -11 -10 -10 ------------- Run | Scr Mat Min Turns Passed 705 | 124 499 82 Spaces Moved 463 | 88 314 61 Core 4 | 4 . . Treads . | . . . Legs 123 | . 123 . Wheels 336 | 84 191 61 Hover . | . . . Flight . | . . . Fastest Speed 50 | 50 80 100 Average Speed 109 | 78 120 100 Slowest Speed 180 | 80 180 100 Overloaded Moves . | . . . Propulsion Burnouts . | . . . Robots Hopped . | . . . Cave-ins Triggered . | . . . Exploration Rate (%) 26 | 3 61 14 Regions Visited 2 Branch Regions 1 Pre-discovered Areas . | . . . Known Exits Taken 1 | . 1 . Unknown Exits Taken 1 | 1 . . Scrap Searched . | . . . Spaces Dug . | . . . Terrain Destroyed 46 | . 16 30 Melee . | . . . Projectile 1 | . . 1 AOE 45 | . 16 29 Actions | -11 -10 -10 --------- Run | Scr Mat Min Total 593 | 121 400 72 Wait 52 | 3 45 4 Move 461 | 87 313 61 Hop . | . . . Pick Up 16 | 10 6 . Fast Attach 11 | 6 5 . Attach 2 | . 1 1 Detach 1 | . 1 . Swap 5 | . 4 1 Drop 11 | 4 7 . Fire 34 | 11 18 5 Melee . | . . . Ram . | . . . Kick . | . . . Crush . | . . . Escape Stasis . | . . . Rewire . | . . . Trap . | . . . Miscellaneous . | . . . Route ------- -11/Scrapyard -10/Materials (discovered 2 exits: [*Mat] / *Min) -10/Mines (discovered 1 exit: [*Mat]) History --------- Turn | Location | Event 12 | -11/Scrapyard | Discovered new exit (range 15) 125 | -11/Scrapyard | Entered Materials 139 | -10/Materials | Identified exit to Mines 171 | -10/Materials | Discovered new exit (range 16) 302 | -10/Materials | Build established: Mutant 537 | -10/Materials | Core integrity fell below 50% 624 | -10/Materials | Entered Mines 629 | -10/Mines | Discovered new exit (range 5) 636 | -10/Mines | Found a hidden stash of uninstalled traps 659 | -10/Mines | Assembled infested the area 701 | -10/Mines | Core integrity fell below 20% 706 | -10/Mines | Destroyed by D-53 Grenadier with Mini Grenade Launcher Last Messages --------------- 00659_ ALERT: Infestation in the mines, dispatching Demolisher response squad. 00666_ Plasma Injector explodes. 00693_ K-01 Serf destroyed. 00694_ D-53 Grenadier knocked back. 00695_ The unstable cave ceiling collapses. 00696_ Lgt. Armor Plating destroyed. 00697_ The unstable cave ceiling collapses. 00698_ Lgt. Ion Engine destroyed. 00699_ K-01 Serf destroyed. 00700_ The unstable cave ceiling collapses. 00700_ U-05 Engineer builds a Wall. 00700_ Wheel destroyed. 00700_ D-53 Grenadier knocked back. 00701_ The unstable cave ceiling collapses. 00701_ Grenade Launcher destroyed. 00703_ The unstable cave ceiling collapses. 00703_ U-05 Engineer builds a Wall. 00704_ Lgt. Treads destroyed. 00704_ Lgt. Cannon destroyed. 00705_ The unstable cave ceiling collapses. Map ----- +----------------------------------------------------+ | ???????????????????????????????????? | | ???????????????????????????????????? | | ???????????????????????????????????? | | ???????????????????????????????????? | | ???????????????????????????????????? | | ???????????????????????????????????? | | ???????????????????????????????????? | | ???????????????????????????????????? | | ???????????????????????????????????? | | ???????????????????????????????????? | | ???????????????????????????????????? | | ???????????????????????????????????? | | ???????????????????????????????????? | | ???????????????????????????????????? | | ???????????????????????????????????? | | ???????????????????????????????????? | | ???????????????????????????????????? | | ???????????????????????????????????? | | ???????????????????????????????????? | | ???????????????????????????????????? | | ????????#######??###??###??????????? | | ???????## ## # # # ?????????? | | ??????## # # ?????????? | | ??????# ????????? | | ??????# d ????????? | | ??????# @ d ????????? | | ??????# ????????? | | ??????# ????????? | | ??????## # # ?????????? | | ???????### # # # ?????????? | | ??????## u #### # ??????????? | | ??????# ##?##??????????? | | ?????## ##????????????? | | ?????# #### ##???????????? | | ?????# #??## #???????????? | | ?????## < ##??## ####????????? | | ??????#### ###?# #????????? | | ?????????## #### ### #????????? | | ?????????##& #?###### ##???????? | | ?????????#&& #?#""""" "##??????? | | ????????# & ##?#" #??????? | | ????????# ###??#" #??????? | | ????????## ###????#" #??????? | | ?????????###???????#" #??????? | | ???????????????????#" #??????? | | ???????????????????#" #??????? | | ???????????????????##"#"#"###??????? | | ????????????????????######?????????? | | ???????????????????????????????????? | | ???????????????????????????????????? | +----------------------------------------------------+ Best States ------------- Heat Dissipation 25 Energy Generation 10 Energy Capacity 125 Matter Stores 300 Matter Capacity 300 Sight Range 16 Terrain Scan Range 16 Terrain Scan Density 10 Armor Coverage 150 Evasion (%) 44 Item Schematics ----------------- None Robot Schematics ------------------ None Fabricated ------------ Nothing Alien Tech Used ----------------- None Achievements -------------- None Challenges ------------ None Game ------ Seed CouplerLightMediator Manual? 0 Play Time 00:10:21 Cumulative 155.6 hours Start 2019.12.25 @ 18:51:06 End 2019.12.25 @ 19:00:32 Sessions 1 Manual Loads 0 Difficulty Rogue Special Mode None Game No. 210 Rogue 199 Adventurer 11 Explorer 0 Win Type - Total 0 Types 0/0/0/0/0/0/0 Lore% 48 Gallery% 59 Achievement% 42 Wizard Run 0 Options --------- ASCII 0 Keyboard 1 Movement Numpad Keybinds 0 Fullscreen 1 Font 12/Terminus Map View 83x54 Tactical HUD 1 Map Filters NONE Filters NONE Steam X RUN: 799306c6-b9b3-4748-bb86-c59183554c1b